bitfinex-derivatives/quotes_ETHF0:USTF0_20251028
["timestamp","ask_amount","ask_price","bid_price","bid_amount"]
[1761628653879,0.43977,4093.1,4093.0,0.1293]
[1761628654184,4.11582791,4093.1,4093.0,0.13227151]
[1761628654577,44.91582791,4093.1,4093.0,0.13227151]
[1761628654772,45.52250131,4093.1,4093.0,0.13227151]
[1761628655373,45.52250131,4093.1,4093.0,0.47137151]
[1761628656082,0.43982,4092.6,4092.5,0.1293]
[1761628656376,4.72255131,4092.6,4092.5,0.1293]
[1761628656573,4.72255131,4092.6,4092.5,0.3408]
[1761628656774,45.52255131,4092.6,4092.5,1e-05]
[1761628656974,46.39549782,4092.6,4092.5,0.00239201]
[1761628657170,45.52255131,4092.6,4092.5,0.00239201]
[1761628657569,45.52255131,4092.6,4092.5,0.44209201]
[1761628657973,45.52255131,4092.6,4092.5,0.00239201]
[1761628658179,45.52255131,4092.6,4092.5,0.55299201]
[1761628659082,45.52255131,4092.6,4092.5,0.34149201]
[1761628659875,45.52255131,4092.6,4092.5,2.01e-06]
[1761628660076,45.52255131,4092.6,4092.5,0.13650201]
[1761628660786,45.52255131,4092.6,4092.5,0.13954071]
[1761628661083,41.8464934,4092.6,4092.5,0.57924071]
[1761628663178,41.8464934,4092.6,4092.5,0.35104071]
[1761628663579,41.8464934,4092.6,4092.5,0.13954071]
[1761628664487,41.8464934,4092.6,4092.5,0.57924071]
[1761628665889,43.58293573,4092.6,4092.5,0.13954071]
[1761628666283,0.43987,4092.1,4092.0,0.569]
[1761628666489,1.0465434,4092.1,4092.0,1.66643204]
[1761628667190,1.04851729,4092.1,4092.0,1.66826934]
[1761628668284,1.04851729,4092.1,4092.0,2.00736934]
[1761628668986,1.75104894,4092.1,4092.0,2.00736934]
[1761628669388,1.04851729,4092.1,4092.0,2.00736934]
[1761628669989,0.60864729,4092.1,4092.0,2.44724934]
[1761628670578,1.04851729,4092.1,4092.0,2.44724934]
[1761628673987,0.60864729,4092.1,4092.0,2.44724934]
[1761628674296,0.43983,4092.6,4092.5,0.9153]
[1761628674796,0.43983,4092.6,4092.5,1.35513]
[1761628675089,1.09942,4093.2,4092.5,1.35513]
[1761628675090,0.87284431,4093.2,4092.6,0.3391]
[1761628675287,1.31558146,4093.2,4093.1,0.7788]
[1761628675592,1.31558146,4093.2,4093.1,0.3391]
[1761628675788,0.44273715,4093.2,4093.1,0.3391]
[1761628677388,1.75393349,4093.2,4093.1,0.5506]
[1761628678589,1.75393349,4093.2,4093.1,0.3391]
[1761628679292,1.75393349,4093.2,4093.1,0.5506]
[1761628679691,0.44273715,4093.2,4093.1,0.7788]
[1761628680401,1.31678691,4093.2,4093.1,0.7788]
[1761628680792,0.44273715,4093.2,4093.1,0.7788]
[1761628682402,1.02197347,4093.3,4093.2,0.3391]
[1761628682594,1.02197347,4093.3,4093.2,0.7788]
[1761628683100,0.43974,4093.3,4093.2,0.7788]
[1761628683500,0.4425972,4093.3,4093.2,0.7788]
[1761628685904,40.8028572,4093.3,4093.2,1.21855]
[1761628686300,41.2425972,4093.3,4093.2,0.7788]
[1761628687404,41.2425972,4093.3,4093.2,1.21856]
[1761628687908,40.8028572,4093.3,4093.2,1.21856]
[1761628688300,0.0028572,4093.3,4093.2,1.21856]
[1761628689411,0.4425972,4093.3,4093.2,1.21856]
[1761628690210,0.0028572,4093.3,4093.2,1.21856]
[1761628690612,0.4426072,4093.3,4093.2,1.21856]
[1761628690914,0.0028572,4093.3,4093.2,1.21856]
[1761628692912,0.9827,4093.7,4093.6,1.22531]
[1761628693106,0.43969,4093.8,4093.7,1.2253]
[1761628693315,0.43968,4093.9,4093.8,1.22528]
[1761628693908,0.44201167,4093.9,4093.8,1.22528]
[1761628695315,0.44201167,4093.9,4093.8,0.7856]
[1761628695517,0.44201167,4093.9,4093.8,1.22529]
[1761628696111,0.00233167,4093.9,4093.8,1.22529]
[1761628696307,1.2336,4094.2,4094.1,1.22526]
[1761628696917,1.2336,4094.2,4094.1,9.22526]
[1761628697319,0.00195404,4094.2,4094.1,1.22526]
[1761628697711,0.44160404,4094.2,4094.1,1.22526]
[1761628702220,0.00195404,4094.2,4094.1,1.22526]
[1761628702418,1.26129,4095.4,4095.3,0.4405]
[1761628702618,1.70081,4095.4,4095.3,0.7856]
[1761628702815,42.50081,4095.4,4095.3,0.7856]
[1761628703414,42.50081,4095.4,4095.3,0.78830092]
[1761628703722,42.50300665,4095.4,4095.3,0.78830092]
[1761628708425,42.50300665,4095.4,4095.3,0.34780092]
[1761628708827,42.50300665,4095.4,4095.3,0.56730092]
[1761628709428,42.50300665,4095.4,4095.3,0.34780092]
[1761628711127,42.50300665,4095.4,4095.3,0.56730092]
[1761628714528,42.50300665,4095.4,4095.3,0.78060092]
[1761628715132,41.24171665,4095.4,4095.3,0.78060092]
[1761628719039,42.50300665,4095.4,4095.3,0.56730092]
[1761628720736,42.50300665,4095.4,4095.3,0.78060092]
[1761628723748,42.29176772,4095.4,4095.3,0.78060092]
[1761628728256,42.29176772,4095.4,4095.3,0.56730092]
[1761628736756,42.29176772,4095.4,4095.3,2.09238728]
[1761628741561,41.24171665,4095.4,4095.3,0.78060092]
[1761628741759,1.3534,4095.8,4095.3,0.78060092]
[1761628741957,0.86739316,4095.8,4095.7,1.79815107]
[1761628742157,1.05005107,4096.5,4096.4,0.5348]
[1761628742359,42.38680766,4096.5,4096.4,0.5348]
[1761628742559,42.38680766,4096.5,4096.4,0.3226]
[1761628742960,42.38863795,4096.5,4096.4,0.3226]
[1761628744870,42.38863795,4096.5,4096.4,0.7482]
[1761628745160,42.38863795,4096.5,4096.4,0.3226]
[1761628746366,42.38863795,4096.5,4096.1,0.3334]
[1761628746559,1.05005107,4096.2,4096.1,0.3334]
[1761628747161,1.58599764,4096.2,4096.1,0.3334]
[1761628747362,1.58599764,4096.2,4096.0,0.1288]
[1761628747658,0.53594657,4096.1,4095.8,0.3467]
[1761628747860,1.05005107,4095.9,4095.8,0.3467]
[1761628748058,41.85005107,4095.9,4095.8,0.3467]
[1761628749463,42.38593209,4095.9,4095.8,0.3467]
[1761628749769,42.38593209,4095.9,4095.3,0.00270092]
[1761628749770,43.43598316,4095.9,4095.3,0.00270092]
[1761628749962,1.05005107,4095.4,4095.3,0.00270092]
[1761628750266,1.58593209,4095.4,4095.3,0.00270092]
[1761628751167,0.53588102,4095.4,4095.3,0.77810092]
[1761628751457,40.8,4095.9,4095.5,0.1348]
[1761628751666,1.05005107,4095.6,4095.5,0.1348]
[1761628751865,1.58567893,4095.6,4095.5,0.1348]
[1761628752161,1.58567893,4095.6,4095.5,0.4815]
[1761628754667,1.53685016,4095.6,4095.5,0.694]
[1761628756374,1.53685016,4095.6,4095.5,0.4815]
[1761628760879,2.58690123,4095.6,4095.5,0.4815]
[1761628765174,1.53685016,4095.6,4095.5,0.4815]
[1761628766978,2.58690123,4095.6,4095.5,0.4815]
[1761628767873,1.53685016,4095.6,4095.5,0.4815]
[1761628768472,2.58690123,4095.6,4095.5,0.4815]
[1761628768679,1.53685016,4095.6,4095.5,0.4815]
[1761628771081,2.58690123,4095.6,4095.5,0.4815]
[1761628772083,1.53685016,4095.6,4095.5,0.4815]
[1761628773579,2.58690123,4095.6,4095.5,0.4815]
[1761628773981,2.58690123,4095.6,4095.5,0.1348]
[1761628774186,2.58690123,4095.6,4095.3,0.00270092]
[1761628774381,0.48679909,4095.5,4095.3,0.00270092]
[1761628774580,40.8,4095.4,4095.3,0.33160092]
[1761628774781,41.28679909,4095.4,4095.3,0.33160092]
[1761628774977,41.28679909,4095.4,4094.5,0.1385]
[1761628775187,1.05005107,4094.6,4094.5,0.1385]
[1761628775486,1.53685016,4094.6,4094.5,0.1385]
[1761628775980,42.33685016,4094.6,4094.5,0.1402905]
[1761628777090,42.33685016,4094.6,4094.5,0.4691905]
[1761628779789,43.38690123,4094.6,4094.5,0.4691905]
[1761628779993,43.38690123,4094.6,4094.1,0.3289]
[1761628780197,1.05005107,4094.2,4094.1,0.3289]
[1761628780394,1.53685016,4094.2,4094.1,0.3289]
[1761628781000,1.53685016,4094.2,4094.1,0.33122488]
[1761628783698,1.74798948,4094.2,4094.1,0.33122488]
[1761628785203,1.74798948,4094.2,4094.1,0.00232488]
[1761628785893,42.54798948,4094.2,4094.1,0.00232488]
[1761628787804,42.54798948,4094.2,4094.1,0.33122488]
[1761628788993,41.28679909,4094.2,4094.1,0.54312488]
[1761628789303,40.8,4094.2,4094.1,0.54312488]
[1761628791604,40.8,4094.2,4094.1,0.33122488]
[1761628792700,40.8,4094.2,4094.1,0.54312488]
[1761628792905,40.8,4094.2,4094.1,0.76832488]
[1761628793906,0.87404976,4095.4,4095.1,0.3289]
[1761628794106,0.53691911,4095.3,4095.1,0.3289]
[1761628794308,40.8,4095.2,4095.1,0.3289]
[1761628794605,41.33691911,4095.2,4095.0,0.4611]
[1761628794805,0.53691911,4095.1,4094.7,0.3289]
[1761628795006,1.26119039,4094.8,4094.7,0.3289]
[1761628795206,1.7981095,4094.8,4094.7,0.3289]
[1761628795409,42.5981095,4094.8,4094.7,0.3289]
[1761628796303,42.5981095,4094.8,4094.7,0.5408]
[1761628796599,42.06119039,4094.8,4094.7,0.5408]
[1761628796800,0.87404976,4095.7,4095.6,0.3289]
[1761628797209,42.21125445,4095.7,4095.3,0.3289]
[1761628797411,2.67244484,4095.6,4095.0,0.1322]
[1761628797701,1.26119039,4095.1,4095.0,0.4611]
[1761628797903,1.79839508,4095.1,4095.0,0.4611]
[1761628800507,1.79839508,4095.1,4094.7,0.3289]
[1761628800705,1.26119039,4094.8,4094.5,0.4611]
[1761628801009,0.53720469,4094.7,4094.3,0.3289]
[1761628801207,1.26119039,4094.4,4094.3,0.5408]
[1761628801408,42.59839508,4094.4,4094.3,0.766]
[1761628801713,1.26119039,4095.1,4095.0,0.673]
[1761628801904,1.79888863,4095.1,4095.0,0.673]
[1761628802306,1.79888863,4095.1,4095.0,0.8982]
[1761628802606,42.59888863,4095.1,4095.0,0.8982]
[1761628802806,42.59888863,4095.1,4095.0,0.4611]
[1761628803806,42.59888863,4095.1,4095.0,0.673]
[1761628804206,42.59888863,4095.1,4095.0,0.8982]
[1761628808417,41.33769824,4095.1,4095.0,0.8982]
[1761628809516,40.8,4095.1,4095.0,0.8982]
[1761628815120,42.06119039,4095.1,4095.0,0.4611]
[1761628815314,42.06119039,4095.1,4095.0,0.6741]
[1761628815718,42.06119039,4095.1,4095.0,0.886]
[1761628818225,42.06119039,4095.1,4095.0,0.4611]
[1761628821422,42.59857244,4095.1,4095.0,0.4611]
[1761628821625,42.06119039,4095.1,4095.0,0.6741]
[1761628821832,42.06119039,4095.1,4095.0,0.886]
[1761628822532,42.06119039,4095.1,4095.0,0.4611]
[1761628823027,42.06119039,4095.1,4095.0,0.6741]
[1761628823929,42.06119039,4095.1,4095.0,0.4611]
[1761628824927,42.06119039,4095.1,4095.0,0.6741]
[1761628825425,42.59900393,4095.1,4095.0,0.6741]
[1761628827133,42.59909548,4095.1,4095.0,0.6741]
[1761628829826,42.59909548,4095.1,4095.0,0.886]
[1761628830834,42.59909548,4095.1,4095.0,0.6741]
[1761628835629,42.59909548,4095.1,4095.0,0.4611]
[1761628835939,43.45909548,4095.1,4095.0,0.4611]
[1761628837147,43.45909548,4095.1,4094.7,0.3346]
[1761628837337,1.26119039,4094.8,4094.7,0.3346]
[1761628837538,1.79909548,4094.8,4094.6,0.3346]
[1761628837738,0.53790509,4094.7,4094.5,0.1322]
[1761628837939,40.8,4094.6,4094.5,0.1322]
[1761628838139,41.33790509,4094.6,4094.5,0.1322]
[1761628838844,41.33790509,4094.6,4094.5,0.4668]
[1761628839647,41.33790509,4094.6,4094.5,0.1322]
[1761628839848,41.33790509,4094.6,4094.3,0.3346]
[1761628840140,1.26119039,4094.4,4094.3,0.3346]
[1761628840445,1.79909548,4094.4,4094.3,0.3346]
[1761628841443,42.59909548,4094.4,4094.3,0.3346]
[1761628845754,42.38863958,4094.4,4094.3,0.3346]
[1761628846356,41.85073449,4094.4,4094.3,0.7832]
[1761628846557,1.05073449,4094.4,4094.3,0.7832]
[1761628847959,41.85073449,4094.4,4094.3,0.7832]
[1761628859856,40.8,4094.4,4094.3,0.7832]
[1761628860965,41.85073449,4094.4,4094.3,0.3346]
[1761628861268,41.85073449,4094.4,4094.3,0.561]
[1761628861865,41.85073449,4094.4,4094.3,0.7832]
[1761628862374,40.8,4094.4,4094.3,0.7832]
[1761628865667,1.05073449,4094.7,4094.5,0.1253]
[1761628865868,1.91073449,4095.1,4095.0,0.8769]
[1761628866066,2.44868981,4095.1,4095.0,0.6594]
[1761628866264,42.19795532,4095.1,4095.0,0.8769]
[1761628870569,42.19795532,4095.1,4095.0,0.6594]
[1761628870775,42.19795532,4095.1,4095.0,0.4431]
[1761628871368,42.19795532,4095.1,4095.0,0.8911]
[1761628871570,43.24868981,4095.1,4095.0,0.8911]
[1761628872878,43.24868981,4095.1,4095.0,0.4431]
[1761628873378,43.24868981,4095.1,4095.0,0.665]
[1761628875174,2.44868981,4095.1,4095.0,0.665]
[1761628875674,43.24868981,4095.1,4095.0,0.665]
[1761628876366,43.24868981,4095.1,4095.0,0.4431]
[1761628877777,42.19795532,4095.1,4095.0,0.665]
[1761628877977,43.24868981,4095.1,4095.0,0.665]
[1761628879473,43.24868981,4095.1,4095.0,0.8911]
[1761628879681,42.19795532,4095.1,4095.0,0.8911]
[1761628885682,0.86,4095.1,4095.0,1.33066]
[1761628885881,0.86,4095.1,4095.0,0.8911]
[1761628886779,0.86,4095.1,4095.0,1.33066]
[1761628886981,40.8,4095.9,4095.8,0.7662]
[1761628887177,41.33576639,4095.9,4095.8,0.7662]
[1761628887973,40.8,4095.9,4095.8,0.7662]
[1761628891476,40.8,4095.9,4095.8,1.20568]
[1761628892181,40.8,4095.9,4095.8,9.81693449]
[1761628892775,1.05256478,4096.5,4095.8,1.93820449]
[1761628892981,0.00183029,4096.5,4096.4,0.5401]
[1761628893180,0.00183029,4096.5,4096.4,0.7662]
[1761628893383,40.80183029,4096.5,4096.4,0.7662]
[1761628898988,40.80183029,4096.5,4096.4,1.20561]
[1761628898989,0.00183029,4096.5,4096.4,1.20561]
[1761628899391,40.80183029,4096.5,4096.4,1.20561]
[1761628899586,40.80183029,4096.5,4096.4,2.25634449]
[1761628899780,0.00183029,4096.5,4096.4,2.25634449]
[1761628900588,0.00183029,4096.5,4096.4,1.81693449]
[1761628901185,0.00183029,4096.5,4096.4,0.7662]
[1761628905386,0.00183029,4096.5,4096.4,0.5401]
[1761628908496,0.00183029,4096.5,4096.4,0.7638]
[1761628909093,0.00183029,4096.5,4096.4,0.5401]
[1761628910300,0.00183029,4096.5,4096.4,0.3182]
[1761628910493,0.00183029,4096.5,4096.1,0.3434]
[1761628910694,1.25927799,4096.2,4096.1,0.3434]
[1761628910894,42.05927799,4096.2,4096.1,0.3434]
[1761628912797,42.59176926,4096.2,4095.0,0.1253]
[1761628913002,1.25927799,4095.2,4095.1,0.3434]
[1761628913300,1.25927799,4095.2,4095.1,0.5741]
[1761628918897,1.25927799,4095.2,4095.1,0.3434]
[1761628920805,40.8,4096.2,4095.1,0.3434]
[1761628921007,1.25927799,4095.3,4095.1,0.3434]
[1761628921410,40.8,4095.2,4095.1,0.3434]
[1761628921907,40.8,4095.2,4095.1,0.5741]
[1761628922108,40.8,4095.2,4095.1,0.7978]
[1761628924202,0.00183029,4096.5,4096.0,0.1388]
[1761628924406,1.25927799,4096.2,4096.1,0.3297]
[1761628924804,42.05927799,4096.2,4096.1,0.3297]
[1761628925205,42.05927799,4096.2,4096.1,0.5473]
[1761628926011,42.05927799,4096.2,4096.1,0.3297]
[1761628926905,42.05927799,4096.2,4096.1,0.7655]
[1761628927307,42.05927799,4096.2,4096.1,0.5473]
[1761628931615,42.05927799,4096.2,4096.1,0.3297]
[1761628932008,42.05927799,4096.2,4096.0,0.1388]
[1761628932204,42.05927799,4096.2,4095.8,0.3178]
[1761628932405,1.25927799,4095.9,4095.8,0.3178]
[1761628933115,1.25927799,4095.9,4095.6,0.3178]
[1761628934307,40.8,4095.8,4095.6,0.3178]
[1761628934711,40.8,4095.8,4095.6,0.27872759]
[1761628938024,40.8,4095.8,4095.2,0.3178]
[1761628938319,1.25927799,4095.3,4095.2,0.3178]
[1761628939025,1.25927799,4095.3,4095.0,0.1253]
[1761628939026,42.05927799,4095.3,4095.0,0.4431]
[1761628939318,42.05927799,4095.3,4095.0,0.1253]
[1761628939512,0.53385977,4095.2,4094.8,0.3178]
[1761628939716,1.25927799,4094.9,4094.8,0.3178]
[1761628940419,42.05927799,4094.9,4094.8,0.3178]
[1761628941415,42.59325953,4094.9,4094.5,0.4431]
[1761628941620,0.53395263,4094.8,4094.6,0.3178]
[1761628941815,0.53395263,4094.7,4094.6,0.3178]
[1761628942021,0.53395263,4094.7,4094.2,0.3178]
[1761628942222,1.25927799,4094.3,4094.2,0.3178]
[1761628942525,42.05927799,4094.3,4094.2,0.3178]
[1761628948131,42.05927799,4094.3,4094.1,0.00232488]
[1761628948526,42.05927799,4094.3,4094.1,0.32012488]
[1761628948932,0.53251486,4094.2,4094.1,0.00232488]
[1761628950135,0.53251486,4094.2,4094.1,0.32012488]
[1761628952133,40.8,4094.3,4094.1,0.32012488]
[1761628954632,2.51855598,4094.4,4093.6,0.3363]
[1761628954832,1.25927799,4093.7,4093.6,0.5673]
[1761628955228,42.05927799,4093.7,4093.6,0.5673]
[1761628955631,42.05927799,4093.7,4093.6,0.57012136]
[1761628955832,42.05927799,4093.7,4093.6,0.79552136]
[1761628963536,42.05927799,4093.7,4093.6,0.00282136]
[1761628964533,42.59090681,4093.7,4093.6,0.00282136]
[1761628967746,42.38299197,4093.7,4093.6,0.00282136]
[1761628972848,42.38299197,4093.7,4093.6,0.33912136]
[1761628973944,42.38299197,4093.7,4093.6,0.00282136]
[1761628976050,42.38299197,4093.7,4093.6,0.33912136]
[1761628977048,43.25704173,4093.7,4093.6,0.33912136]
[1761628977444,42.38299197,4093.7,4093.6,0.57012136]
[1761628978154,42.38299197,4093.7,4093.6,0.33912136]
[1761628979851,42.38299197,4093.7,4093.6,0.57012136]
[1761628980448,42.38299197,4093.7,4093.6,0.33912136]
[1761628980851,42.38299197,4093.7,4093.6,0.57012136]
[1761628981050,42.38299197,4093.7,4093.6,0.79552136]
[1761628981753,42.38299197,4093.7,4093.6,0.33912136]
[1761628987464,42.38299197,4093.7,4093.6,0.00282136]
[1761628988059,42.38299197,4093.7,4093.6,0.32312136]
[1761628989655,42.38299197,4093.7,4093.6,0.00282136]
[1761628989861,43.43435512,4093.7,4093.6,0.00282136]
[1761628990160,42.38299197,4093.7,4093.6,0.00282136]
[1761628990359,43.43435512,4093.7,4093.6,0.00282136]
[1761628990556,42.38299197,4093.7,4093.6,0.00282136]
[1761628990760,44.74555146,4093.7,4093.2,0.3203]
[1761628990961,2.1027263,4093.3,4093.0,0.4504]
[1761628991156,0.53162882,4093.2,4093.0,0.4504]
[1761628991460,40.8,4093.1,4093.0,0.4504]
[1761628991656,42.20599075,4093.1,4093.0,0.4504]
[1761628991859,42.20818919,4093.1,4093.0,0.45255484]
[1761628993261,42.20818919,4093.1,4093.0,0.67405484]
[1761628994259,42.20818919,4093.1,4093.0,0.45255484]
[1761628994560,42.20818919,4093.1,4093.0,0.42911143]
[1761628995262,41.33382726,4093.1,4093.0,0.65061143]
[1761628995963,41.33382726,4093.1,4093.0,0.87131143]
[1761629001277,42.38519041,4093.1,4093.0,0.87131143]
[1761629001580,41.33382726,4093.1,4093.0,0.87131143]
[1761629002680,40.80219844,4093.1,4093.0,0.87131143]
[1761629006685,40.80219844,4093.1,4093.0,8.87131143]
[1761629007086,40.80219844,4093.1,4093.0,0.87131143]
[1761629009284,40.80219844,4093.1,4093.0,1.92267458]
[1761629009482,1e-08,4093.1,4093.0,2.36245458]
[1761629009678,1e-08,4093.1,4093.0,10.36245458]
[1761629010379,0.43977001,4093.1,4093.0,9.92267458]
[1761629012285,0.43977001,4093.1,4093.0,11.23867608]
[1761629012683,0.43977001,4093.1,4093.0,11.67845608]
[1761629014379,0.43977001,4093.1,4093.0,11.23867608]
[1761629014582,0.43977001,4093.1,4093.0,2.18731293]
[1761629014788,0.43977001,4093.1,4093.0,0.87131143]
[1761629018289,1.05136316,4093.1,4092.6,1.30356303]
[1761629018491,1.05136315,4092.7,4092.1,0.3397]
[1761629018687,1.05136315,4092.2,4092.1,0.3397]
[1761629019190,1.05136315,4092.2,4092.1,0.559]
[1761629019387,1.05136315,4092.2,4092.1,0.56102043]
[1761629019388,41.85136315,4092.2,4092.1,0.56102043]
[1761629020189,41.85136315,4092.2,4092.1,0.34172043]
[1761629023392,41.85136315,4092.2,4092.1,0.00202043]
[1761629023596,41.85136315,4092.2,4092.1,0.34172043]
[1761629024186,42.9027263,4092.2,4092.1,0.34172043]
[1761629024391,41.85136315,4092.2,4092.1,0.00202043]
[1761629025297,43.43619262,4092.2,4091.2,0.3397]
[1761629025495,1.05136315,4091.3,4091.0,0.4681]
[1761629025991,2.18179561,4093.4,4091.0,0.4681]
[1761629025992,40.8,4091.2,4091.1,1.22118]
[1761629026197,40.8,4091.2,4091.1,0.78329326]
[1761629029092,1.05136315,4091.8,4091.1,1.49495641]
[1761629029395,22.002,4092.9,4092.2,0.3397]
[1761629029698,40.8,4092.3,4092.2,0.3397]
[1761629029895,40.8,4092.3,4092.2,0.559]
[1761629030498,42.06230545,4092.3,4092.2,0.3397]
[1761629031998,42.06230545,4092.3,4092.2,0.559]
[1761629033902,42.06230545,4092.3,4092.2,0.3397]
[1761629035003,40.8,4092.3,4092.2,0.7812]
[1761629035799,1e-08,4093.1,4092.2,0.7812]
[1761629035996,1.26230545,4092.9,4092.6,0.3397]
[1761629036403,40.8,4092.8,4092.6,0.3397]
[1761629037604,40.8,4092.8,4092.6,0.559]
[1761629038106,40.8,4092.8,4092.7,0.3397]
[1761629038302,40.8,4092.8,4092.5,0.4681]
[1761629038607,40.8,4092.8,4092.7,0.3397]
[1761629041007,40.8,4092.8,4092.7,0.559]
[1761629041311,40.8,4092.8,4092.7,0.7812]
[1761629042502,1e-08,4093.1,4093.0,0.1284]
[1761629043001,40.80000001,4093.1,4093.0,0.9096]
[1761629047916,41.23977001,4093.1,4093.0,0.9096]
[1761629048304,41.23977001,4093.1,4093.0,0.6903]
[1761629048510,41.23977001,4093.1,4093.0,0.4681]
[1761629050217,41.23977001,4093.1,4093.0,0.6982]
[1761629054623,41.23977001,4093.1,4093.0,0.68413399]
[1761629056520,0.43979,4092.9,4092.8,0.3162]
[1761629056820,1.70209545,4092.9,4092.8,0.3162]
[1761629057408,1.70209545,4092.9,4092.8,0.5463]
[1761629058819,1.70209545,4092.9,4092.8,0.3162]
[1761629061725,1.70209545,4092.9,4092.8,0.5463]
[1761629061917,0.43979,4092.9,4092.8,0.7564]
[1761629062123,1e-08,4093.1,4093.0,0.8871]
[1761629062426,1e-08,4093.1,4093.0,0.5709]
[1761629062614,40.80000001,4093.1,4093.0,0.5709]
[1761629062813,40.80000001,4093.1,4093.0,0.8871]
[1761629065522,40.80000001,4093.1,4093.0,0.4469]
[1761629068026,40.80000001,4093.1,4092.7,0.3162]
[1761629068321,1.26230545,4092.9,4092.7,0.3162]
[1761629071522,0.53425026,4092.8,4092.7,0.3162]
[1761629073330,1.26230545,4092.9,4092.7,0.3162]
[1761629075930,1.26230545,4092.9,4092.8,0.3178]
[1761629076132,0.534112,4092.9,4092.8,0.7719]
[1761629076330,40.80000001,4093.1,4093.0,0.1326]
[1761629076530,41.33415004,4093.1,4093.0,0.9045]
[1761629085334,41.33415004,4093.1,4093.0,0.6794]
[1761629087236,41.33415004,4093.1,4093.0,0.9045]
[1761629087940,40.80000001,4093.1,4093.0,0.9045]
[1761629088728,40.80000001,4093.1,4093.0,2.21637924]
[1761629089136,40.80000001,4093.1,4093.0,0.9045]
[1761629089435,40.80000001,4093.1,4093.0,2.22245054]
[1761629091039,40.80000001,4093.1,4093.0,0.9045]
[1761629092347,40.80000001,4093.1,4093.0,2.2217865]
[1761629095846,1e-08,4093.1,4093.0,1.9039865]
[1761629097754,1e-08,4093.1,4093.0,2.3437665]
[1761629097957,1e-08,4093.1,4093.0,1.9039865]
[1761629099358,1e-08,4093.1,4093.0,0.5867]
[1761629101350,1e-08,4093.1,4093.0,0.1326]
[1761629101552,1e-08,4093.1,4092.5,0.1284]
[1761629101749,1.05101158,4092.6,4092.5,0.1284]
[1761629101949,41.85101158,4092.6,4092.5,0.4462]
[1761629102149,41.85101158,4092.6,4092.5,0.9003]
[1761629102352,40.8,4092.6,4092.5,0.9003]
[1761629104058,40.8,4092.6,4092.5,2.2175865]
[1761629110565,1.05101158,4093.0,4092.6,0.43982]
[1761629110769,1e-08,4093.1,4093.0,0.3502]
[1761629111264,40.80000001,4093.1,4093.0,0.9253]
[1761629112665,40.80000001,4093.1,4093.0,0.6941]
[1761629112863,40.80000001,4093.1,4093.0,0.4749]
[1761629114668,40.80000001,4093.1,4093.0,0.46646043]
[1761629119977,41.33587639,4093.1,4093.0,0.46646043]
[1761629120982,41.33587639,4093.1,4092.7,0.3439]
[1761629121176,1.05101158,4092.8,4092.7,0.3439]
[1761629121473,1.58685825,4092.8,4092.7,0.3439]
[1761629122474,1.58685825,4092.8,4092.5,0.4723]
[1761629122676,1.05101158,4092.8,4092.6,0.3439]
[1761629126278,1.05101158,4092.8,4092.6,0.2192]
[1761629126577,1.05101158,4092.8,4092.7,0.3439]
[1761629126977,1.05101158,4092.8,4092.7,0.7943]
[1761629128679,41.85101159,4093.1,4093.0,0.9253]
[1761629130982,41.85101159,4093.1,4093.0,0.6941]
[1761629131181,41.85101159,4093.1,4093.0,0.4749]
[1761629132281,41.85101159,4093.1,4093.0,0.6941]
[1761629133484,41.85101159,4093.1,4093.0,0.9253]
[1761629140091,40.80000001,4093.1,4093.0,0.9253]
[1761629142086,1e-08,4093.1,4093.0,0.5814]
[1761629142587,1e-08,4093.1,4093.0,0.3502]
[1761629142886,1e-08,4093.1,4093.0,1.66806084]
[1761629143282,1e-08,4093.1,4093.0,0.3502]
[1761629143687,1e-08,4093.1,4093.0,0.78998]
[1761629144192,1e-08,4093.1,4093.0,0.3502]
[1761629145485,1e-08,4093.1,4093.0,0.78998]
[1761629145891,1e-08,4093.1,4093.0,0.3502]
[1761629148087,1e-08,4093.1,4093.0,0.78998]
[1761629148390,1e-08,4093.1,4093.0,0.3502]
[1761629148588,1e-08,4093.1,4093.0,0.78998]
[1761629148984,1e-08,4093.1,4093.0,1.84099158]
[1761629149789,1e-08,4093.1,4093.0,0.78998]
[1761629150083,40.8,4093.6,4093.0,0.3502]
[1761629150285,40.8,4093.6,4093.5,0.5715]
[1761629150794,40.8,4093.6,4093.5,2.65639216]
[1761629150997,40.8,4093.6,4093.5,2.21666216]
[1761629151197,40.80300796,4093.6,4093.5,0.9001]
[1761629152093,40.80300796,4093.6,4093.5,0.4648]
[1761629159807,40.80300796,4093.6,4093.5,0.1362]
[1761629160013,42.59970833,4093.6,4092.7,1.64516216]
[1761629160212,1.26088491,4092.8,4092.2,1.64516216]
[1761629160419,0.53571356,4092.7,4092.3,0.3286]
[1761629160710,1.26088491,4092.4,4092.3,0.3286]
[1761629161415,42.06088491,4092.4,4092.3,0.3286]
[1761629162810,42.06088491,4092.4,4092.1,0.3286]
[1761629163611,42.06088491,4092.4,4092.1,0.2172]
[1761629163910,42.06088491,4092.4,4092.2,0.3286]
[1761629164715,42.06088491,4092.4,4092.2,0.2172]
[1761629164915,42.06088491,4092.4,4092.3,0.3291]
[1761629167416,40.8,4092.4,4092.3,0.547]
[1761629167621,40.8,4092.4,4092.3,0.7632]
[1761629168620,40.8,4092.4,4092.3,0.547]
[1761629168821,40.8,4092.4,4092.3,0.3291]
[1761629171618,41.23984,4092.4,4092.3,0.3291]
[1761629172619,41.23984,4092.4,4092.3,0.547]
[1761629172920,41.23984,4092.4,4092.3,0.7632]
[1761629173117,41.23984,4092.4,4092.3,0.547]
[1761629173318,41.23984,4092.4,4092.3,0.3291]
[1761629173815,0.43988,4092.1,4092.0,0.1326]
[1761629174718,0.64929,4091.1,4091.0,0.27229169]
[1761629174918,0.64929,4091.1,4091.0,0.62669169]
[1761629175113,0.43999,4091.1,4091.0,0.5706]
[1761629175623,0.64929,4091.1,4091.0,0.5706]
[1761629175823,0.64929,4091.1,4091.0,0.57296181]
[1761629176617,0.64929,4091.1,4091.0,0.91046181]
[1761629177017,0.64929,4091.1,4091.0,1.35045181]
[1761629177224,0.64929,4091.1,4091.0,0.91046181]
[1761629177622,2.19952,4091.9,4091.0,0.91046181]
[1761629177623,0.7422,4091.9,4091.8,0.2179]
[1761629177828,0.4399,4091.9,4091.8,2.03248491]